lending/lending_fUSD_20240202
["ID","MTS","AMOUNT","RATE_DAILY","PERIOD"]
[313164345,1706843438317,-182.4323604,0.000229,2]
[313164346,1706843438326,-810.5117376,0.000229,2]
[313164347,1706843438336,-2167.54880004,0.000229,2]
[313164348,1706843438345,-938.58,0.00022948,2]
[313164349,1706843438355,-191.04417909,0.0002299,2]
[313164350,1706843438364,-8437.40910574,0.00022997,2]
[313164351,1706843438376,-452.64,0.00022997,2]
[313164352,1706843438388,-21450.18980493,0.00022997,2]
[313164353,1706843438402,-903.352006,0.00022997,2]
[313164354,1706843438413,-265607.35993832,0.00022997,2]
[313164355,1706843438423,-1443.45568983,0.00022998,2]
[313164356,1706843438433,-200.0,0.00022999,2]
[313164357,1706843438442,-393.25895794,0.00022999,10]
[313164358,1706843438451,-3565922.24534174,0.00023,2]
[313164359,1706843438463,-1609.55802822,0.00023,2]
[313164360,1706843438477,-36844.74469071,0.00023,2]
[313164361,1706843438488,-35481.27600709,0.00023,2]
[313164362,1706843438500,-38866.00301581,0.00023,2]
[313164363,1706843438516,-4536.75444911,0.00023,2]
[313164364,1706843438527,-847.22200004,0.00023,2]
[313164365,1706843438538,-761.9585976,0.00023,2]
[313164366,1706843438548,-664.7155546,0.00023,2]
[313164367,1706843441120,-6.69890334,0.00023,2]
[313164368,1706843441542,-548.80636806,0.00023,2]
[313164375,1706843445027,-686.67353611,0.0002258,2]
[313164376,1706843445037,-660.42500767,0.00023,2]
[313164377,1706843445048,-26182.766696,0.00023,2]
[313164378,1706843445059,-354.8153205,0.00023,2]
[313164379,1706843445070,-2389.54222765,0.00023,2]
[313164380,1706843445189,-523191.53961259,0.00023,2]
[313164381,1706843445201,-2568.82334881,0.00023,2]
[313164404,1706843446109,-420.65248789,0.00022999,2]
[313164405,1706843446118,-2197.5193916,0.00023,2]
[313164406,1706843446217,-345.8142608,0.00023,2]
[313164407,1706843446465,-679.84810076,0.00023,2]
[313164408,1706843446481,-8128.05487611,0.00023,2]
[313164409,1706843446492,-118615.75803677,0.00023,2]
[313164410,1706843446503,-41995.89324118,0.00023,2]
[313164412,1706843469508,172.86,0.00021777,10]
[313164414,1706843481035,1000.0,0.00021861,2]
[313164415,1706843486325,180.49,0.0002249,2]
[313164416,1706843560932,592.48,0.00021861,2]
[313164417,1706843607010,157.27,0.00021894,2]
[313164418,1706843607626,212.33,0.00021894,2]
[313164419,1706843631688,167.59,0.00017546,2]
[313164420,1706843663734,266.22,0.00020053,2]
[313164421,1706843664055,266.22,0.00022317,2]
[313164422,1706843725198,563.22,0.00021857,2]
[313164423,1706843772607,183.82,0.00021777,2]
[313164424,1706843773926,150.0,0.00022,2]
[313164425,1706843780236,176.85,0.00022,2]
[313164426,1706843784289,891.65,0.0002194,2]
[313164427,1706843784520,891.65,0.00022,2]
[313164428,1706843784755,891.65,0.0002206,2]
[313164429,1706843784951,891.65,0.00022121,2]
[313164430,1706843785146,891.65,0.00022181,2]
[313164431,1706843785344,891.65,0.00022241,2]
[313164432,1706843785556,891.65,0.00022301,2]
[313164433,1706843785779,891.65,0.00022361,2]
[313164434,1706843786009,891.65,0.00022421,2]
[313164435,1706843786239,891.65,0.00022482,2]
[313164436,1706843856683,164.32316626,0.00022442,2]
[313164437,1706843861684,164.32316626,0.00022445,2]
[313164438,1706843866688,164.32316626,0.00022448,2]
[313164439,1706843885430,150.0,0.00021781,2]
[313164440,1706843916038,180.49,0.00021777,2]
[313164441,1706843924824,-150.0,0.00022501,2]
[313164442,1706843925201,-150.0,0.00022501,2]
[313164443,1706843925597,-150.0,0.00022501,2]
[313164444,1706843971593,171.96197771,0.000225,2]
[313164445,1706844044716,296.24,0.00021738,2]
[313164446,1706844060100,171.96197771,0.000225,2]
[313164447,1706844071554,200.0,0.00021749,2]
[313164448,1706844094935,-30.4800142,0.00022501,2]
[313164449,1706844094958,-119.5199858,0.00022501,2]
[313164450,1706844118653,239.59,0.00019837,2]
[313164451,1706844118934,150.0,0.00022,2]
[313164452,1706844119059,239.59,0.00022101,2]
[313164453,1706844134611,171.96197771,0.000225,2]
[313164454,1706844150167,167.59,0.0001739,2]
[313164455,1706844152577,155.44,0.00021768,2]
[313164456,1706844194839,461.57,0.00021933,2]
[313164457,1706844195065,461.57,0.00021993,2]
[313164458,1706844195378,461.57,0.00022053,2]
[313164459,1706844195578,461.57,0.00022114,2]
[313164460,1706844195772,461.57,0.00022174,2]
[313164461,1706844195973,461.57,0.00022234,2]
[313164462,1706844196169,461.57,0.00022294,2]
[313164463,1706844196368,461.57,0.00022354,2]
[313164464,1706844196598,461.57,0.00022414,2]
[313164465,1706844196811,461.57,0.00022475,2]
[313164466,1706844198095,150.0,0.00022,2]
[313164467,1706844215124,171.96197771,0.000225,2]
[313164468,1706844305639,171.96197771,0.000225,2]
[313164469,1706844309755,150.0,0.00021738,2]
[313164470,1706844408522,150.0,0.00022,2]
[313164471,1706844412336,515.0501693,0.00021789,2]
[313164472,1706844413706,176.85,0.00022,2]
[313164473,1706844482863,446.3377985,0.00022499,2]
[313164474,1706844499564,840.0,0.00021836,2]
[313164475,1706844539322,967.70028133,0.00022491,2]
[313164476,1706844544619,215.63,0.0001982,2]
[313164477,1706844544952,215.63,0.00022084,2]
[313164478,1706844562550,296.24,0.00021708,2]
[313164479,1706844568566,450.57,0.00021714,2]
[313164480,1706844584369,155.44,0.00021738,2]
[313164483,1706844611550,230.78,0.00021886,2]
[313164484,1706844611937,230.78,0.00021946,2]
[313164485,1706844612051,230.78,0.00022006,2]
[313164486,1706844612265,230.78,0.00022066,2]
[313164487,1706844612500,230.78,0.00022126,2]
[313164488,1706844612703,230.78,0.00022186,2]
[313164489,1706844612915,230.78,0.00022246,2]
[313164490,1706844613132,230.78,0.00022306,2]
[313164491,1706844613343,230.78,0.00022366,2]
[313164492,1706844613576,230.78,0.00022426,2]
[313164493,1706844613771,230.78,0.00022486,2]
[313164494,1706844622444,679.83884633,0.000225,2]
[313164521,1706844632318,-149.47789971,0.00022501,2]
[313164522,1706844632328,-446.33779847,0.0002252,2]
[313164523,1706844632337,-446.33779847,0.00022541,2]
[313164524,1706844632347,-230.78,0.00022546,2]
[313164525,1706844632356,-150.0,0.00022548,2]
[313164526,1706844632365,-176.85,0.00022548,2]
[313164527,1706844632375,-446.33779847,0.00022562,2]
[313164528,1706844632384,-446.33779847,0.00022583,2]
[313164529,1706844632394,-419.0409,0.00022599,2]
[313164530,1706844632403,-2500.0,0.00022599,2]
[313164531,1706844632412,-150.0,0.00022604,2]
[313164532,1706844632421,-446.33779847,0.00022605,2]
[313164533,1706844632431,-499.99,0.00022605,2]
[313164534,1706844632440,-230.78,0.00022606,2]
[313164535,1706844632449,-446.33779847,0.00022626,2]
[313164536,1706844632458,-415.8740494,0.00022647,2]
[313164537,1706844632472,-30.46374907,0.00022647,2]
[313164538,1706844632481,-230.78,0.00022666,2]
[313164539,1706844632491,-446.33779847,0.00022668,2]
[313164540,1706844632500,-446.33779847,0.00022689,2]
[313164541,1706844632510,-288.36685,0.00022697,2]
[313164542,1706844632520,-188.36805278,0.00022697,2]
[313164543,1706844632529,-22238.14386349,0.00022698,2]
[313164544,1706844632539,-1084.54321019,0.00022699,2]
[313164545,1706844632549,-23291.71663238,0.00022699,2]
[313164546,1706844632561,-327.01287504,0.00022699,2]
[313164547,1706844632573,-221381.27049258,0.00022699,2]
[313164548,1706844632582,-9369.90042012,0.00022699,2]
[313164549,1706844632593,-27290.49367988,0.00022699,2]
[313164551,1706844632602,-446.33779847,0.0002271,2]
[313164553,1706844632611,-230.78,0.00022726,2]
[313164555,1706844632620,-446.33779847,0.00022731,2]
[313164557,1706844632629,-446.33779847,0.00022752,2]
[313164559,1706844632637,-446.33779847,0.00022773,2]
[313164561,1706844632646,-230.78,0.00022786,2]
[313164563,1706844632655,-150.86737056,0.00022789,2]
[313164564,1706844632664,-446.33779847,0.00022794,2]
[313164566,1706844632674,-319.23915081,0.00022796,2]
[313164568,1706844632683,-202.9908377,0.00022796,2]
[313164570,1706844632692,-299.35838825,0.00022797,2]
[313164572,1706844632701,-1102.15916704,0.00022798,2]
[313164574,1706844632710,-386.3453184,0.00022798,2]
[313164576,1706844632719,-97260.79518326,0.00022798,2]
[313164578,1706844632728,-48061.72442053,0.00022799,2]
[313164581,1706844632740,-353.62981947,0.00022799,2]
[313164583,1706844632752,-1456.18436291,0.00022799,2]
[313164585,1706844632764,-458.31718879,0.00022799,2]
[313164588,1706844632779,-499.82864977,0.00022799,2]
[313164590,1706844632790,-411.68315571,0.00022799,2]
[313164592,1706844632801,-394.61416969,0.00022799,2]
[313164595,1706844638286,-274571.38303313,0.00022799,2]
[313164596,1706844638295,-450.57,0.000228,2]
[313164597,1706844638305,-446.33779847,0.00022816,2]
[313164598,1706844638325,-446.33779847,0.00022837,2]
[313164599,1706844638335,-230.78,0.00022846,2]
[313164600,1706844638344,-636.68311941,0.00022856,2]
[313164601,1706844638354,-446.33779847,0.00022858,2]
[313164602,1706844638364,-446.33779847,0.00022879,2]
[313164603,1706844638373,-169.86391151,0.000229,2]
[313164604,1706844638383,-198.50359611,0.000229,2]
[313164605,1706844638393,-158.90682179,0.000229,2]
[313164606,1706844638402,-1161.64264114,0.000229,2]
[313164607,1706844638411,-446.33779847,0.000229,2]
[313164608,1706844638421,-1770.63756873,0.000229,2]
[313164609,1706844638431,-305.09971878,0.000229,2]
[313164610,1706844638441,-1084.54321019,0.000229,2]
[313164611,1706844638450,-72083.98656301,0.000229,2]
[313164612,1706844638459,-230.78,0.00022906,2]
[313164613,1706844638469,-230.78,0.00022966,2]
[313164614,1706844638479,-150.86737056,0.0002299,2]
[313164615,1706844638489,-3210255.52879503,0.00023,2]
[313164616,1706844638558,-100499.35924303,0.00023,2]
[313164620,1706844641506,-1430.18375976,0.00023,2]
[313164621,1706844641614,-1536.12040449,0.00023,2]
[313164622,1706844641669,-751.02933199,0.00023,2]
[313164623,1706844641681,-14089.96194122,0.00023,2]
[313164624,1706844641725,-4282.63383082,0.00023,2]
[313164631,1706844644168,-6573.09063436,0.00023,2]
[313164632,1706844644331,-367703.43092017,0.00023,2]
[313164634,1706844646297,-255.5242572,0.00023,2]
[313164635,1706844646308,-3962.09042165,0.00023,2]
[313164636,1706844646463,-1433.49229833,0.00023,2]
[313164637,1706844646518,-292589.55869536,0.00023,2]
[313164638,1706844646530,-41995.89324118,0.00023,2]
[313164639,1706844646628,-636.82958897,0.00023,2]
[313164640,1706844646639,-1288.17523618,0.00023,2]
[313164656,1706844759752,199.36,0.00021738,2]
[313164657,1706844826357,188.48415626,0.00022498,2]
[313164658,1706845044222,153.06786787,0.00022,2]
[313164659,1706845048248,176.85,0.00022,2]
[313164660,1706845173152,194.06,0.00019923,2]
[313164661,1706845173488,194.06,0.00022187,2]
[313164662,1706845206307,2500.0,0.00022499,2]
[313164663,1706845343349,672.0,0.00021841,2]
[313164664,1706845411853,150.0,0.00022,2]
[313164665,1706845581239,150.0,0.00021854,2]
[313164666,1706845602140,230.78,0.00022019,2]
[313164667,1706845604845,270.34,0.00021812,2]
[313164668,1706845681411,176.85,0.00022,2]
[313164669,1706845725914,174.65,0.00019933,2]
[313164670,1706845726438,174.65,0.00022197,2]
[313164674,1706845766125,462.4,0.0002185,2]
[313164689,1706845831644,-199.825732,0.00022545,2]
[313164690,1706845831654,-522.6097858,0.00022546,2]
[313164691,1706845831664,-4534.36965629,0.00022547,2]
[313164692,1706845831673,-150.0,0.00022548,2]
[313164693,1706845831682,-182.4306794,0.00022548,2]
[313164694,1706845831692,-150.0,0.00022598,2]
[313164695,1706845831701,-15877.107,0.00022599,2]
[313164696,1706845831711,-34537.85801353,0.00022599,2]
[313164697,1706845831759,-321.90484521,0.00022599,2]
[313164698,1706845831771,-562.4996314,0.00022599,2]
[313164699,1706845831783,-252.7154311,0.00022599,2]
[313164700,1706845837489,-8538.0597707,0.00022599,2]
[313164701,1706845837542,-12496.5938476,0.00022599,2]
[313164702,1706845837554,-1478.00002489,0.00022599,2]
[313164703,1706845837567,-2861.16401675,0.00022599,2]
[313164704,1706845837662,-63342.70551882,0.00022599,2]
[313164705,1706845837672,-39354.6766,0.00022599,2]
[313164706,1706845837681,-15228.0684,0.00022599,2]
[313164707,1706845837690,-3228.2853,0.00022599,2]
[313164708,1706845837700,-507.9052,0.00022599,2]
[313164709,1706845837709,-1000.0,0.00022599,2]
[313164710,1706845837718,-1500.0,0.00022717,2]
[313164711,1706845837728,-300.0,0.00022725,2]
[313164712,1706845837737,-150.0,0.00022727,2]
[313164713,1706845837746,-152.70598456,0.00022729,2]
[313164714,1706845837755,-150.0,0.00022729,2]
[313164715,1706845837765,-1500.0,0.00022731,2]
[313164716,1706845837774,-150.0,0.00022732,2]
[313164717,1706845837783,-150.0,0.0002274,2]
[313164718,1706845837792,-150.0,0.0002274,2]
[313164719,1706845837801,-150.0,0.00022743,2]
[313164720,1706845837811,-150.0,0.00022743,2]
[313164721,1706845837820,-150.0,0.00022747,2]
[313164722,1706845837829,-150.0,0.00022747,2]
[313164723,1706845837839,-300.0,0.00022749,2]
[313164724,1706845837848,-300.0,0.00022752,2]
[313164725,1706845837857,-150.0,0.00022752,2]
[313164726,1706845837866,-150.0,0.00022757,2]
[313164727,1706845837875,-150.0,0.00022759,2]
[313164728,1706845837884,-150.0,0.00022759,2]
[313164729,1706845837893,-150.0,0.00022762,2]
[313164730,1706845837902,-150.0,0.00022765,2]
[313164731,1706845837915,-150.0,0.00022765,2]
[313164732,1706845837924,-291.49100546,0.00022771,2]
[313164733,1706845837933,-1500.0,0.00022772,2]
[313164734,1706845837942,-150.0,0.00022772,2]
[313164735,1706845837951,-150.0,0.00022775,2]
[313164736,1706845837959,-150.0,0.00022781,2]
[313164737,1706845837969,-150.0,0.00022789,2]
[313164738,1706845837978,-150.0,0.00022793,2]
[313164739,1706845837987,-150.0,0.00022793,2]
[313164740,1706845837996,-150.0,0.00022795,2]
[313164741,1706845838006,-150.0,0.00022803,2]
[313164742,1706845838015,-150.0,0.00022806,2]
[313164743,1706845838025,-150.0,0.00022806,2]
[313164744,1706845838034,-800.0,0.00022816,2]
[313164745,1706845838043,-150.0,0.00022816,2]
[313164746,1706845838053,-306.62791142,0.0002282,2]
[313164747,1706845838062,-150.0,0.00022821,2]
[313164748,1706845838071,-150.0,0.00022825,2]
[313164749,1706845838081,-150.0,0.00022827,2]
[313164750,1706845838091,-150.0,0.0002283,2]
[313164751,1706845838101,-150.0,0.00022831,2]
[313164752,1706845838110,-150.0,0.00022834,2]
[313164753,1706845838119,-150.0,0.00022841,2]
[313164754,1706845838128,-150.0,0.00022843,2]
[313164755,1706845838137,-150.0,0.00022849,2]
[313164756,1706845838146,-152.92664003,0.00022861,2]
[313164757,1706845838156,-150.0,0.00022866,2]
[313164758,1706845838165,-150.0,0.00022866,2]
[313164759,1706845838174,-150.0,0.00022879,2]
[313164760,1706845838183,-150.0,0.00022879,2]
[313164761,1706845838192,-1500.0,0.0002288,2]
[313164762,1706845838201,-150.0,0.00022881,2]
[313164763,1706845838210,-150.0,0.00022882,2]
[313164764,1706845838219,-150.0,0.00022884,2]
[313164765,1706845838228,-150.0,0.00022889,2]
[313164766,1706845838237,-150.0,0.00022889,2]
[313164767,1706845838250,-150.0,0.00022892,2]
[313164768,1706845838259,-150.0,0.00022892,2]
[313164769,1706845838268,-1500.0,0.00022894,2]
[313164770,1706845838277,-150.0,0.00022895,2]
[313164771,1706845838287,-150.0,0.00022898,2]
[313164772,1706845838296,-158.90682179,0.000229,2]
[313164773,1706845838305,-172.00612287,0.000229,2]
[313164774,1706845838314,-195.37594163,0.000229,2]
[313164775,1706845838323,-1646.5477536,0.000229,2]
[313164776,1706845838332,-150.0,0.00022901,2]
[313164777,1706845838341,-270.34,0.00022903,2]
[313164778,1706845838350,-150.0,0.00022904,2]
[313164779,1706845838359,-150.0,0.00022908,2]
[313164780,1706845838370,-150.0,0.00022915,2]
[313164781,1706845838379,-150.0,0.00022921,2]
[313164782,1706845838389,-150.0,0.00022925,2]
[313164783,1706845838398,-150.0,0.00022926,2]
[313164784,1706845838408,-150.0,0.00022926,2]
[313164785,1706845838417,-150.0,0.00022929,2]
[313164786,1706845838427,-150.0,0.00022929,2]
[313164787,1706845838436,-150.0,0.00022931,2]
[313164788,1706845838445,-150.0,0.00022934,2]
[313164789,1706845838455,-332.43761977,0.00022941,2]
[313164790,1706845838465,-150.0,0.00022942,2]
[313164791,1706845838474,-150.0,0.00022943,2]
[313164792,1706845838483,-199.36,0.00022946,2]
[313164793,1706845838493,-150.0,0.00022948,2]
[313164794,1706845838503,-150.0,0.00022952,2]
[313164795,1706845838513,-150.0,0.00022952,2]
[313164796,1706845838523,-150.0,0.00022954,2]
[313164797,1706845838532,-150.0,0.00022956,2]
[313164798,1706845838542,-150.0,0.00022961,2]
[313164799,1706845838551,-150.0,0.00022962,2]
[313164800,1706845838561,-150.0,0.00022965,2]
[313164801,1706845838570,-150.0,0.00022966,2]
[313164802,1706845838579,-150.0,0.00022967,2]
[313164803,1706845838593,-150.0,0.00022967,2]
[313164804,1706845838602,-150.0,0.00022968,2]
[313164805,1706845838612,-150.0,0.00022969,2]
[313164806,1706845838622,-150.0,0.00022975,2]
[313164807,1706845838632,-150.0,0.00022983,2]
[313164808,1706845838641,-150.0,0.00022985,2]
[313164809,1706845838649,-420.51663594,0.00022987,2]
[313164810,1706845838658,-296.46278445,0.00022999,2]
[313164811,1706845838667,-15033.08097348,0.00022999,2]
[313164812,1706845838676,-246.52944561,0.00022999,2]
[313164813,1706845838685,-1169203.72596592,0.00023,2]
[313164814,1706845838695,-1877464.84616968,0.00023,2]
[313164815,1706845838709,-115988.47278231,0.00023,2]
[313164818,1706845840141,-321.1046262,0.00022599,2]
[313164819,1706845840152,-8292.89681295,0.00022599,2]
[313164820,1706845840249,-288.59341171,0.00022599,2]
[313164821,1706845840949,-13476.81984308,0.00022599,2]
[313164822,1706845841006,-2470.54374625,0.00022599,2]
[313164823,1706845841017,-469.30961175,0.00022599,2]
[313164841,1706845842684,-4234.51878844,0.00022599,2]
[313164842,1706845842702,-305.0,0.00022599,2]
[313164843,1706845842862,-407.52415103,0.00022599,2]
[313164844,1706845842871,-6953.03392228,0.00023,2]
[313164855,1706845845618,-500.0,0.00023,2]
[313164856,1706845845677,-3559.8961483,0.00023,2]
[313164857,1706845868066,583.8664,0.00022499,2]
[313164858,1706845875874,633.13754359,0.00022077,2]
[313164859,1706845930394,1000.0,0.00022499,2]
[313164860,1706845932646,199.44,0.00021929,2]
[313164862,1706846006134,264.12,0.00021905,2]
[313164863,1706846012329,168.65,0.00021905,2]
[313164864,1706846024790,270.39,0.00021898,2]
[313164865,1706846073126,250.0,0.00021896,2]
[313164866,1706846085816,150.0,0.00021893,2]
[313164867,1706846100833,250.0,0.00021918,2]
[313164868,1706846104726,189.4,0.00022057,2]
[313164869,1706846170030,195.13,0.00019969,2]
[313164870,1706846170379,195.13,0.00022233,2]
[313164871,1706846203129,630.08,0.00021887,2]
[313164872,1706846319131,353.08,0.00022,2]
[313164873,1706846341927,1773.76,0.00021879,2]
[313164874,1706846347969,150.0,0.0002249,2]
[313164875,1706846361559,159.48,0.0002188,2]
[313164876,1706846419735,416.23,0.00021882,2]
[313164877,1706846511933,189.4,0.00022046,2]
[313164878,1706846520500,150.0,0.00022,2]
[313164879,1706846544098,162.2,0.00021873,2]
[313164881,1706846615987,152.89090886,0.00022,2]
[313164882,1706846631542,175.61,0.00019956,2]
[313164883,1706846631867,175.61,0.0002222,2]
[313164884,1706846679099,495.93,0.00021861,2]
[313164887,1706846730523,207.91053932,0.00022411,2]
[313164918,1706847033342,-420.65248789,0.0002251,2]
[313164919,1706847033351,-53.36121528,0.000226,2]
[313164920,1706847033365,-2838.89453252,0.000226,2]
[313164921,1706847033396,-954.01451178,0.000226,2]
[313164922,1706847033452,-3321.28190819,0.000226,2]
[313164923,1706847033463,-478.71809181,0.00022696,2]
[313164924,1706847033509,-340.83887002,0.00022696,2]
[313164925,1706847033564,-299.42368159,0.00022696,2]
[313164926,1706847033577,-381.01935658,0.00022696,2]
[313164927,1706847033590,-1500.0,0.00022702,2]
[313164928,1706847033601,-150.0,0.0002273,2]
[313164929,1706847033612,-150.0,0.00022733,2]
[313164931,1706847033622,-150.0,0.00022736,2]
[313164933,1706847033633,-150.0,0.00022741,2]
[313164935,1706847033643,-150.0,0.00022745,2]
[313164936,1706847033653,-300.0,0.00022749,2]
[313164937,1706847033664,-332.43761977,0.0002275,2]
[313164938,1706847033675,-499.99,0.0002275,2]
[313164940,1706847033686,-696.48,0.00022753,2]
[313164942,1706847033696,-150.0,0.00022755,2]
[313164944,1706847033707,-150.0,0.00022757,2]
[313164945,1706847033717,-150.0,0.00022759,2]
[313164946,1706847033729,-150.0,0.00022759,2]
[313164947,1706847033739,-150.0,0.0002276,2]
[313164948,1706847033750,-291.49100546,0.00022761,2]
[313164949,1706847033761,-150.0,0.00022764,2]
[313164950,1706847033772,-150.0,0.00022764,2]
[313164951,1706847033783,-150.0,0.00022766,2]
[313164952,1706847033794,-150.0,0.00022768,2]
[313164953,1706847033807,-150.0,0.0002278,2]
[313164954,1706847033818,-150.0,0.00022783,2]
[313164955,1706847033829,-150.0,0.0002279,2]
[313164956,1706847033838,-1500.0,0.00022791,2]
[313164957,1706847033848,-150.0,0.00022798,2]
[313164958,1706847033858,-1500.0,0.00022798,2]
[313164959,1706847033867,-150.0,0.00022799,2]
[313164960,1706847033878,-150.0,0.00022804,2]
[313164961,1706847033890,-150.0,0.00022807,2]
[313164962,1706847033900,-150.0,0.00022808,2]
[313164963,1706847033910,-150.0,0.00022809,2]
[313164964,1706847033921,-150.0,0.00022809,2]
[313164965,1706847033932,-31304.86566014,0.0002281,2]
[313164974,1706847037662,-1550.24633986,0.0002281,2]
[313164975,1706847037673,-150.0,0.00022814,2]
[313164976,1706847037683,-800.0,0.00022816,2]
[313164977,1706847037694,-150.0,0.00022817,2]
[313164978,1706847037704,-150.0,0.00022819,2]
[313164979,1706847037714,-150.0,0.00022821,2]
[313164980,1706847037725,-150.0,0.00022823,2]
[313164981,1706847037735,-150.0,0.0002283,2]
[313164982,1706847037746,-150.0,0.00022831,2]
[313164983,1706847037757,-150.0,0.00022833,2]
[313164984,1706847037767,-77.70490385,0.00022842,2]
[313164985,1706847037780,-72.29509615,0.00022842,2]
[313164986,1706847037791,-150.0,0.00022846,2]
[313164987,1706847037802,-150.0,0.00022847,2]
[313164988,1706847037814,-150.0,0.00022849,2]
[313164989,1706847037825,-300.0,0.00022849,2]
[313164990,1706847037836,-150.0,0.00022854,2]
[313164991,1706847037847,-150.0,0.00022856,2]
[313164992,1706847037858,-150.0,0.00022859,2]
[313164993,1706847037868,-150.0,0.0002286,2]
[313164994,1706847037879,-150.0,0.00022867,2]
[313164995,1706847037889,-150.0,0.00022869,2]
[313164996,1706847037900,-150.0,0.00022873,2]
[313164997,1706847037911,-150.0,0.00022876,2]
[313164998,1706847037921,-150.0,0.00022876,2]
[313164999,1706847037932,-150.0,0.00022877,2]
[313165000,1706847037942,-150.0,0.00022877,2]
[313165001,1706847037953,-150.0,0.00022879,2]
[313165002,1706847037964,-150.0,0.00022879,2]
[313165003,1706847037975,-150.0,0.00022884,2]
[313165004,1706847037986,-150.0,0.00022888,2]
[313165005,1706847037997,-150.0,0.00022894,2]
[313165006,1706847038008,-150.0,0.00022896,2]
[313165007,1706847038019,-150.0,0.00022896,2]
[313165008,1706847038030,-150.0,0.00022898,2]
[313165009,1706847038040,-1646.5477536,0.000229,2]
[313165010,1706847038051,-157.28459607,0.000229,2]
[313165012,1706847038062,-1507.020943,0.000229,2]
[313165013,1706847038073,-221.83499118,0.000229,6]
[313165015,1706847038084,-1525.49783866,0.000229,2]
[313165017,1706847038094,-651.25313876,0.000229,2]
[313165019,1706847038105,-1029.44018712,0.000229,2]
[313165021,1706847038116,-1995.60967085,0.000229,2]
[313165023,1706847038127,-774.42842742,0.000229,2]
[313165043,1706847038308,-150.0,0.00022904,2]
[313165045,1706847038322,-150.0,0.00022906,2]
[313165047,1706847038332,-150.0,0.00022909,2]
[313165049,1706847038342,-150.0,0.0002291,2]
[313165051,1706847038351,-150.0,0.00022911,2]
[313165053,1706847038360,-1500.0,0.00022911,2]
[313165054,1706847038370,-150.0,0.00022914,2]
[313165055,1706847038379,-150.0,0.00022925,2]
[313165056,1706847038388,-150.0,0.00022927,2]
[313165057,1706847038398,-150.0,0.00022929,2]
[313165058,1706847038407,-300.0,0.00022931,2]
[313165059,1706847038417,-150.0,0.00022933,2]
[313165060,1706847038427,-306.62791142,0.00022933,2]
[313165061,1706847038436,-150.0,0.00022941,2]
[313165062,1706847038445,-150.0,0.00022941,2]
[313165063,1706847038454,-150.0,0.00022942,2]
[313165064,1706847038464,-152.92664003,0.00022944,2]
[313165065,1706847038473,-150.0,0.0002295,2]
[313165066,1706847038483,-150.0,0.00022952,2]
[313165067,1706847038492,-150.0,0.00022953,2]
[313165068,1706847038501,-150.0,0.00022954,2]
[313165069,1706847038510,-152.70598456,0.00022954,2]
[313165070,1706847038520,-150.0,0.0002296,2]
[313165071,1706847038529,-150.0,0.00022961,2]
[313165072,1706847038538,-162.2,0.00022966,2]
[313165073,1706847038548,-150.0,0.00022968,2]
[313165074,1706847038556,-150.0,0.00022969,2]
[313165075,1706847038565,-150.0,0.00022976,2]